[Event "Schack-SM 2024: Veteran-SM 65+"]
[Site "Fortnox Arena, Hejaregatan 5, Vaxjo, Sweden"]
[Date "2024.06.29"]
[Round "1.1"]
[White "Larsson, Per-Olov"]
[Black "Wengholm, Anders"]
[Result "1/2-1/2"]
[TimeControl "90 minutes for 40 moves + 30 minutes for the rest of the game + 30 seconds per move from move one."]
[BlackTitle "CM"]
[WhiteElo "1933"]
[BlackElo "2180"]

1. e4 {[%clk 01:30:52]} {[%emt 00:00:07]} c5 {[%clk 01:30:12]} {[%emt
00:00:49]} 2. c3 {[%clk 01:30:59]} {[%emt 00:00:22]} a6 {[%clk 01:29:58]}
{[%emt 00:00:45]} 3. d4 {[%clk 01:30:51]} {[%emt 00:00:38]} cxd4 {[%clk
01:30:03]} {[%emt 00:00:26]} 4. cxd4 {[%clk 01:30:57]} {[%emt 00:00:23]} d5
{[%clk 01:30:19]} {[%emt 00:00:15]} 5. e5 {[%clk 01:29:27]} {[%emt 00:02:00]}
Bf5 {[%clk 01:30:06]} {[%emt 00:00:42]} 6. Bd3 {[%clk 01:28:40]} {[%emt
00:01:17]} Bxd3 {[%clk 01:30:24]} {[%emt 00:00:13]} 7. Qxd3 {[%clk 01:29:00]}
{[%emt 00:00:09]} e6 {[%clk 01:30:50]} {[%emt 00:00:04]} 8. Nf3 {[%clk
01:28:33]} {[%emt 00:00:56]} Nc6 {[%clk 01:30:50]} {[%emt 00:00:31]} 9. O-O
{[%clk 01:27:32]} {[%emt 00:01:31]} Nge7 {[%clk 01:31:08]} {[%emt 00:00:12]} 10.
Nc3 {[%clk 01:23:10]} {[%emt 00:04:52]} Nf5 {[%clk 01:26:39]} {[%emt 00:04:59]}
11. Rd1 {[%clk 01:18:18]} {[%emt 00:05:21]} h5 {[%clk 01:24:12]} {[%emt
00:02:58]} 12. Bg5 {[%clk 01:16:02]} {[%emt 00:02:46]} Be7 {[%clk 01:17:43]}
{[%emt 00:06:59]} 13. Bxe7 {[%clk 01:15:04]} {[%emt 00:01:28]} Qxe7 {[%clk
01:18:04]} {[%emt 00:00:10]} 14. Nxd5 {[%clk 01:12:54]} {[%emt 00:02:39]} exd5
{[%clk 01:11:05]} {[%emt 00:07:29]} 15. Qxf5 {[%clk 01:13:07]} {[%emt
00:00:17]} Qe6 {[%clk 01:11:09]} {[%emt 00:00:27]} 16. Qxe6+ {[%clk 01:09:13]}
{[%emt 00:04:23]} fxe6 {[%clk 01:10:59]} {[%emt 00:00:39]} 17. Rac1 {[%clk
01:09:27]} {[%emt 00:00:17]} Kd7 {[%clk 01:01:26]} {[%emt 00:10:04]} 18. Rc5
{[%clk 00:59:39]} {[%emt 00:10:17]} Rac8 {[%clk 00:51:24]} {[%emt 00:10:32]} 19.
Rdc1 {[%clk 00:56:50]} {[%emt 00:03:19]} Ne7 {[%clk 00:50:51]} {[%emt
00:01:03]} 20. Rxc8 {[%clk 00:52:30]} {[%emt 00:04:50]} Nxc8 {[%clk 00:51:14]}
{[%emt 00:00:07]} 21. Kf1 {[%clk 00:51:55]} {[%emt 00:01:05]} Ne7 {[%clk
00:51:23]} {[%emt 00:00:21]} 22. Ke2 {[%clk 00:51:00]} {[%emt 00:01:25]} Rf8
{[%clk 00:51:14]} {[%emt 00:00:40]} 23. Rc3 {[%clk 00:45:46]} {[%emt 00:05:43]}
Rf5 {[%clk 00:34:15]} {[%emt 00:17:28]} 24. h4 {[%clk 00:41:59]} {[%emt
00:04:17]} Rf4 {[%clk 00:33:22]} {[%emt 00:01:23]} 25. g3 {[%clk 00:35:18]}
{[%emt 00:07:11]} Rf8 {[%clk 00:33:13]} {[%emt 00:00:39]} 26. Ne1 {[%clk
00:29:49]} {[%emt 00:05:59]} Nf5 {[%clk 00:32:06]} {[%emt 00:01:38]} 27. Nc2
{[%clk 00:29:46]} {[%emt 00:00:33]} Rg8 {[%clk 00:30:25]} {[%emt 00:02:11]} 28.
Kd3 {[%clk 00:27:11]} {[%emt 00:03:05]} g5 {[%clk 00:27:27]} {[%emt 00:03:28]}
29. hxg5 {[%clk 00:25:35]} {[%emt 00:02:06]} Rxg5 {[%clk 00:27:50]} {[%emt
00:00:07]} 30. Ne3 {[%clk 00:25:10]} {[%emt 00:00:55]} Nxe3 {[%clk 00:07:26]}
{[%emt 00:20:53]} 31. Kxe3 {[%clk 00:25:12]} {[%emt 00:00:29]} Rg4 {[%clk
00:07:17]} {[%emt 00:00:39]} 32. Rc1 {[%clk 00:22:12]} {[%emt 00:03:30]} h4
{[%clk 00:07:25]} {[%emt 00:00:22]} 33. Rg1 {[%clk 00:19:35]} {[%emt 00:03:07]}
hxg3 {[%clk 00:07:06]} {[%emt 00:00:50]} 34. Rxg3 {[%clk 00:17:06]} {[%emt
00:02:58]} Re4+ {[%clk 00:07:29]} {[%emt 00:00:06]} 35. Kd3 {[%clk 00:17:19]}
{[%emt 00:00:17]} Rf4 {[%clk 00:07:51]} {[%emt 00:00:09]} 36. f3 {[%clk
00:16:56]} {[%emt 00:00:53]} Rf7 {[%clk 00:07:44]} {[%emt 00:00:37]} 37. Ke3
{[%clk 00:16:19]} {[%emt 00:01:07]} Rh7 {[%clk 00:07:50]} {[%emt 00:00:23]} 38.
Rg2 {[%clk 00:15:45]} {[%emt 00:01:04]} a5 {[%clk 00:07:05]} {[%emt 00:01:16]}
39. Rd2 {[%clk 00:14:10]} {[%emt 00:02:04]} Rh4 {[%clk 00:05:43]} {[%emt
00:01:53]} 40. b3 {[%clk 00:09:26]} {[%emt 00:05:13]} b6 {[%clk 00:04:08]}
{[%emt 00:02:06]} 41. Rc2 {[%clk 00:07:09]} {[%emt 00:02:47]} Rh1 {[%clk
00:04:01]} {[%emt 00:00:37]} 42. Rg2 {[%clk 00:29:13]} {[%emt 00:08:25]} Rh7
{[%clk 00:34:11]} {[%emt 00:00:22]} 43. a3 {[%clk 00:28:53]} {[%emt 00:00:50]}
Kd8 {[%clk 00:22:18]} {[%emt 00:12:22]} 44. b4 {[%clk 00:25:41]} {[%emt
00:03:43]} axb4 {[%clk 00:07:25]} {[%emt 00:15:22]} 45. axb4 {[%clk 00:26:00]}
{[%emt 00:00:11]} Rh1 {[%clk 00:07:44]} {[%emt 00:00:11]} 46. Rg8+ {[%clk
00:04:53]} {[%emt 00:21:36]} Kd7 {[%clk 00:06:52]} {[%emt 00:01:23]} 47. Rg7+
{[%clk 00:05:00]} {[%emt 00:00:23]} Kc6 {[%clk 00:05:38]} {[%emt 00:01:44]} 48.
b5+ {[%clk 00:04:29]} {[%emt 00:01:01]} Kxb5 {[%clk 00:06:02]} {[%emt
00:00:06]} 49. Rg6 {[%clk 00:04:51]} {[%emt 00:00:07]} Re1+ {[%clk 00:04:19]}
{[%emt 00:02:14]} 50. Kd3 {[%clk 00:03:57]} {[%emt 00:01:24]} Ra1 {[%clk
00:04:32]} {[%emt 00:00:16]} 51. Rxe6 {[%clk 00:04:01]} {[%emt 00:00:27]} Ra3+
{[%clk 00:04:36]} {[%emt 00:00:26]} 52. Ke2 {[%clk 00:04:07]} {[%emt 00:00:24]}
Ra2+ {[%clk 00:04:25]} {[%emt 00:00:41]} 53. Ke3 {[%clk 00:03:24]} {[%emt
00:01:12]} Ra3+ {[%clk 00:04:44]} {[%emt 00:00:12]} 54. Ke2 {[%clk 00:03:24]}
{[%emt 00:00:30]} Ra2+ {[%clk 00:05:06]} {[%emt 00:00:08]} 55. Ke3 {[%clk
00:02:54]} {[%emt 00:01:00]} Ra3+ {[%clk 00:05:25]} {[%emt 00:00:12]} 1/2-1/2

[Event "Schack-SM 2024: Veteran-SM 65+"]
[Site "Fortnox Arena, Hejaregatan 5, Vaxjo, Sweden"]
[Date "2024.06.29"]
[Round "1.2"]
[White "Engstrom, Kaj"]
[Black "Vrabec, Josip"]
[Result "1-0"]
[TimeControl "90 minutes for 40 moves + 30 minutes for the rest of the game + 30 seconds per move from move one."]
[WhiteElo "2163"]
[BlackElo "1926"]

1. e4 {[%clk 01:30:59]} c5 {[%clk 01:30:53]} {[%emt 00:00:08]} 2. Nf3 {[%clk
01:31:25]} {[%emt 00:00:04]} g6 {[%clk 01:31:03]} {[%emt 00:00:21]} 3. Bc4
{[%clk 01:27:55]} {[%emt 00:03:59]} Nc6 {[%clk 01:30:57]} {[%emt 00:00:36]} 4.
O-O {[%clk 01:28:10]} {[%emt 00:00:14]} Bg7 {[%clk 01:31:07]} {[%emt 00:00:20]}
5. c3 {[%clk 01:28:06]} {[%emt 00:00:34]} Nf6 {[%clk 01:30:44]} {[%emt
00:00:53]} 6. e5 {[%clk 01:27:12]} {[%emt 00:01:25]} Ng8 {[%clk 01:28:50]}
{[%emt 00:02:24]} 7. d4 {[%clk 01:26:59]} {[%emt 00:00:43]} d6 {[%clk
01:26:52]} {[%emt 00:02:27]} 8. exd6 {[%clk 01:09:50]} {[%emt 00:17:39]} Qxd6
{[%clk 01:25:14]} {[%emt 00:02:08]} 9. Ng5 {[%clk 01:05:51]} {[%emt 00:04:30]}
Nh6 {[%clk 01:20:05]} {[%emt 00:05:39]} 10. Ne4 {[%clk 01:06:03]} {[%emt
00:00:17]} Qc7 {[%clk 01:18:30]} {[%emt 00:02:05]} 11. Nxc5 {[%clk 01:05:50]}
{[%emt 00:00:43]} Ng4 {[%clk 01:16:00]} {[%emt 00:03:00]} 12. g3 {[%clk
01:01:19]} {[%emt 00:05:01]} O-O {[%clk 01:16:05]} {[%emt 00:00:25]} 13. Be2
{[%clk 01:01:11]} {[%emt 00:00:38]} h5 {[%clk 01:14:37]} {[%emt 00:01:57]} 14.
Nd2 {[%clk 00:57:06]} {[%emt 00:04:36]} Rd8 {[%clk 01:08:02]} {[%emt 00:07:05]}
15. Ndb3 {[%clk 00:44:16]} {[%emt 00:13:21]} a5 {[%clk 01:02:08]} {[%emt
00:06:23]} 16. a4 {[%clk 00:38:03]} {[%emt 00:06:44]} b6 {[%clk 01:01:54]}
{[%emt 00:00:44]} 17. Ne4 {[%clk 00:37:51]} {[%emt 00:00:41]} Bf5 {[%clk
00:48:05]} {[%emt 00:14:19]} 18. f3 {[%clk 00:32:05]} {[%emt 00:06:16]} Nf6
{[%clk 00:46:33]} {[%emt 00:02:02]} 19. Bd3 {[%clk 00:31:38]} {[%emt 00:00:57]}
Bh3 {[%clk 00:43:41]} {[%emt 00:03:21]} 20. Re1 {[%clk 00:31:52]} {[%emt
00:00:17]} e5 {[%clk 00:42:47]} {[%emt 00:01:24]} 21. Bg5 {[%clk 00:30:53]}
{[%emt 00:01:29]} Qe7 {[%clk 00:38:26]} {[%emt 00:04:50]} 22. Bb5 {[%clk
00:12:45]} {[%emt 00:18:39]} Qe6 {[%clk 00:33:22]} {[%emt 00:05:34]} 23. Bxf6
{[%clk 00:12:15]} {[%emt 00:01:00]} Bxf6 {[%clk 00:33:46]} {[%emt 00:00:06]} 24.
d5 {[%clk 00:12:35]} {[%emt 00:00:11]} 1-0

[Event "Schack-SM 2024: Veteran-SM 65+"]
[Site "Fortnox Arena, Hejaregatan 5, Vaxjo, Sweden"]
[Date "2024.06.29"]
[Round "1.3"]
[White "Ghafari, Raymond"]
[Black "Blomstrom, Lars"]
[Result "1/2-1/2"]
[TimeControl "90 minutes for 40 moves + 30 minutes for the rest of the game + 30 seconds per move from move one."]
[WhiteElo "1909"]
[BlackElo "2122"]

1. d4 {[%clk 01:30:57]} {[%emt 00:00:03]} Nf6 {[%clk 01:30:54]} {[%emt
00:00:06]} 2. Nf3 {[%clk 01:31:14]} {[%emt 00:00:12]} g6 {[%clk 01:31:18]}
{[%emt 00:00:08]} 3. g3 {[%clk 01:31:30]} {[%emt 00:00:13]} Bg7 {[%clk
01:31:42]} {[%emt 00:00:06]} 4. Bg2 {[%clk 01:31:46]} {[%emt 00:00:13]} O-O
{[%clk 01:31:36]} {[%emt 00:00:38]} 5. O-O {[%emt 00:00:09]} d6 {[%emt
00:00:13]} 6. a4 {[%clk 01:31:04]} {[%emt 00:00:50]} Nbd7 {[%clk 01:29:18]}
{[%emt 00:02:47]} 7. a5 {[%clk 01:28:48]} {[%emt 00:02:46]} a6 {[%clk
01:27:10]} {[%emt 00:02:38]} 8. Nbd2 {[%clk 01:22:46]} {[%emt 00:06:32]} e5
{[%clk 01:24:04]} {[%emt 00:03:36]} 9. dxe5 {[%clk 01:20:52]} {[%emt 00:02:24]}
dxe5 {[%clk 01:19:30]} {[%emt 00:05:05]} 10. e4 {[%clk 01:20:15]} {[%emt
00:01:07]} Re8 {[%clk 01:16:05]} {[%emt 00:03:55]} 11. Re1 {[%clk 01:17:07]}
{[%emt 00:03:36]} Nf8 {[%clk 01:08:33]} {[%emt 00:08:03]} 12. Ra3 {[%clk
01:13:37]} {[%emt 00:04:01]} Qe7 {[%clk 01:06:32]} {[%emt 00:02:30]} 13. Qe2
{[%clk 01:08:48]} {[%emt 00:05:19]} Bd7 {[%clk 01:02:06]} {[%emt 00:04:57]} 14.
Qc4 {[%clk 00:55:24]} {[%emt 00:13:53]} Bc6 {[%clk 00:56:41]} {[%emt 00:05:55]}
15. b4 {[%clk 00:54:41]} {[%emt 00:01:12]} Rad8 {[%clk 00:55:05]} {[%emt
00:02:07]} 16. Bb2 {[%clk 00:53:40]} {[%emt 00:01:31]} Bb5 {[%clk 00:43:48]}
{[%emt 00:11:47]} 17. Qb3 {[%clk 00:47:54]} {[%emt 00:06:15]} c5 {[%clk
00:43:56]} {[%emt 00:00:23]} 18. bxc5 {[%clk 00:40:21]} {[%emt 00:05:07]} N8d7
{[%clk 00:38:43]} {[%emt 00:08:39]} 19. Bc3 {[%clk 00:36:40]} {[%emt 00:04:11]}
Nxc5 {[%clk 00:38:19]} {[%emt 00:00:55]} 20. Qb2 {[%clk 00:36:59]} {[%emt
00:00:10]} Na4 {[%clk 00:25:29]} {[%emt 00:13:21]} 21. Qa1 {[%clk 00:36:46]}
{[%emt 00:00:39]} Nxc3 {[%clk 00:25:45]} {[%emt 00:00:17]} 22. Rxc3 {[%clk
00:36:52]} {[%emt 00:00:23]} Rc8 {[%clk 00:13:41]} {[%emt 00:12:35]} 23. Bf1
{[%clk 00:32:35]} {[%emt 00:04:46]} Bxf1 {[%clk 00:10:46]} {[%emt 00:03:27]} 24.
Kxf1 {[%clk 00:29:08]} {[%emt 00:03:56]} Qb4 {[%clk 00:09:31]} {[%emt
00:01:45]} 25. Rxc8 {[%clk 00:25:27]} {[%emt 00:04:11]} Rxc8 {[%clk 00:09:58]}
{[%emt 00:00:04]} 26. Rb1 {[%clk 00:25:03]} {[%emt 00:00:52]} Qc5 {[%clk
00:06:23]} {[%emt 00:04:06]} 27. Qxe5 {[%clk 00:22:04]} {[%emt 00:03:29]} Qxc2
{[%clk 00:05:59]} {[%emt 00:00:54]} 28. Rxb7 {[%clk 00:19:02]} {[%emt
00:03:32]} Qd1+ {[%clk 00:05:49]} {[%emt 00:00:40]} 29. Kg2 {[%clk 00:17:34]}
{[%emt 00:01:58]} Re8 {[%clk 00:01:48]} {[%emt 00:04:31]} 30. Rb8 {[%clk
00:15:54]} {[%emt 00:02:10]} Qa4 {[%clk 00:02:16]} {[%emt 00:00:03]} 31. Rxe8+
{[%clk 00:15:20]} {[%emt 00:01:03]} Nxe8 {[%clk 00:02:25]} {[%emt 00:00:21]} 32.
Qd5 {[%clk 00:14:38]} {[%emt 00:01:12]} h6 {[%clk 00:00:56]} {[%emt 00:01:59]}
33. e5 {[%clk 00:14:05]} {[%emt 00:01:03]} Qg4 {[%clk 00:00:46]} {[%emt
00:00:39]} 34. Ne4 {[%clk 00:13:49]} {[%emt 00:00:47]} Qe6 {[%clk 00:01:03]}
{[%emt 00:00:13]} 35. Qc5 {[%clk 00:12:20]} {[%emt 00:01:58]} Bf8 {[%clk
00:01:31]} {[%emt 00:00:02]} 36. Qb6 {[%clk 00:12:22]} {[%emt 00:00:29]} Kg7
{[%clk 00:01:41]} {[%emt 00:00:20]} 37. Qd4 {[%clk 00:07:52]} {[%emt 00:04:59]}
Be7 {[%clk 00:00:48]} {[%emt 00:01:24]} 38. Nfd2 {[%clk 00:07:14]} {[%emt
00:01:08]} Nc7 {[%clk 00:01:07]} {[%emt 00:00:10]} 39. Nc5 {[%clk 00:06:01]}
{[%emt 00:01:44]} Qc6+ {[%clk 00:01:30]} {[%emt 00:00:06]} 40. Nce4 {[%clk
00:05:12]} {[%emt 00:01:20]} Ne6 {[%clk 00:00:37]} {[%emt 00:01:24]} 41. Qb6
{[%clk 00:04:45]} {[%emt 00:00:56]} Qd5 {[%clk 00:30:06]} {[%emt 00:00:59]} 42.
f4 {[%emt 00:03:25]} Nc5 {[%clk 00:28:51]} {[%emt 00:00:16]} 43. Qb1 {[%clk
00:31:50]} {[%emt 00:04:32]} Bd8 44. Qc2 {[%emt 00:03:35]} Nxe4 {[%clk
00:23:15]} {[%emt 00:00:59]} 45. Nxe4 {[%clk 00:32:07]} {[%emt 00:00:14]} Bxa5
{[%emt 00:00:26]} 46. Kh3 {[%clk 00:32:17]} {[%emt 00:00:08]} Qe6+ {[%clk
00:22:14]} {[%emt 00:01:47]} 47. Kg2 {[%clk 00:32:40]} {[%emt 00:00:06]} Qd5
{[%clk 00:22:14]} {[%emt 00:00:31]} 48. Kh3 {[%emt 00:01:03]} Bb6 {[%emt
00:00:36]} 49. Nf6 Qc5 {[%emt 00:00:03]} 1/2-1/2

[Event "Schack-SM 2024: Veteran-SM 65+"]
[Site "Fortnox Arena, Hejaregatan 5, Vaxjo, Sweden"]
[Date "2024.06.29"]
[Round "1.4"]
[White "Adler, Bo"]
[Black "Ekelund, Kurt"]
[Result "1/2-1/2"]
[TimeControl "90 minutes for 40 moves + 30 minutes for the rest of the game + 30 seconds per move from move one."]
[WhiteElo "2108"]
[BlackElo "1907"]

1. d4 {[%clk 01:30:30]} {[%emt 04:49:14]} Nf6 {[%clk 01:21:39]} {[%emt
00:09:47]} 2. c4 {[%clk 01:30:40]} {[%emt 00:00:21]} g6 {[%clk 01:21:57]}
{[%emt 00:00:11]} 3. Nc3 {[%clk 01:31:05]} {[%emt 00:00:05]} Bg7 {[%clk
01:22:16]} {[%emt 00:00:12]} 4. e4 {[%clk 01:31:28]} {[%emt 00:00:07]} d6
{[%clk 01:22:38]} {[%emt 00:00:08]} 5. Be2 {[%clk 01:31:45]} {[%emt 00:00:14]}
O-O {[%clk 01:22:47]} {[%emt 00:00:20]} 6. Bg5 {[%clk 01:31:39]} {[%emt
00:00:36]} h6 {[%clk 01:22:22]} {[%emt 00:00:55]} 7. Be3 {[%clk 01:31:57]}
{[%emt 00:00:12]} c5 {[%clk 01:21:30]} {[%emt 00:01:22]} 8. d5 {[%clk
01:32:20]} {[%emt 00:00:08]} e6 {[%clk 01:21:00]} {[%emt 00:00:59]} 9. f3
{[%clk 01:25:35]} {[%emt 00:07:14]} exd5 {[%clk 01:20:44]} {[%emt 00:00:47]} 10.
cxd5 {[%clk 01:25:58]} {[%emt 00:00:07]} Na6 {[%clk 01:15:35]} {[%emt
00:05:39]} 11. Qd2 {[%clk 01:18:15]} {[%emt 00:08:12]} Nc7 {[%clk 01:08:35]}
{[%emt 00:07:31]} 12. Bxh6 {[%clk 01:17:18]} {[%emt 00:01:27]} Nxe4 {[%clk
01:08:55]} {[%emt 00:00:09]} 13. fxe4 {[%clk 01:11:22]} {[%emt 00:06:28]} Qh4+
{[%clk 01:08:40]} {[%emt 00:00:43]} 14. g3 {[%clk 01:11:35]} {[%emt 00:00:18]}
Qxh6 {[%clk 01:08:20]} {[%emt 00:00:48]} 15. Nf3 {[%clk 01:10:37]} {[%emt
00:01:30]} Rb8 {[%clk 01:06:45]} {[%emt 00:02:05]} 16. a4 {[%clk 00:57:14]}
{[%emt 00:13:53]} Bd7 {[%clk 01:06:49]} {[%emt 00:00:26]} 17. Qxh6 {[%clk
00:56:09]} {[%emt 00:01:33]} Bxh6 {[%clk 01:07:04]} {[%emt 00:00:17]} 18. e5
{[%clk 00:56:18]} {[%emt 00:00:21]} Na6 {[%clk 00:54:02]} {[%emt 00:13:31]} 19.
Ne4 {[%clk 00:55:10]} {[%emt 00:01:37]} Bg7 {[%clk 00:52:48]} {[%emt 00:01:45]}
20. Nxd6 {[%clk 00:37:30]} {[%emt 00:18:10]} Nb4 {[%clk 00:48:06]} {[%emt
00:05:13]} 21. Bc4 {[%clk 00:35:35]} {[%emt 00:02:25]} Bg4 {[%clk 00:28:18]}
{[%emt 00:20:18]} 22. O-O {[%clk 00:34:36]} {[%emt 00:01:28]} Bxf3 {[%clk
00:28:42]} {[%emt 00:00:06]} 23. Rxf3 {[%clk 00:34:55]} {[%emt 00:00:12]} Bxe5
{[%clk 00:29:01]} {[%emt 00:00:10]} 24. Nxf7 {[%clk 00:35:17]} {[%emt
00:00:09]} Bd4+ {[%clk 00:29:24]} {[%emt 00:00:06]} 25. Kg2 {[%clk 00:35:36]}
{[%emt 00:00:11]} Nc2 {[%clk 00:28:17]} {[%emt 00:01:37]} 26. d6 {[%clk
00:35:17]} {[%emt 00:00:49]} Kg7 {[%clk 00:28:11]} {[%emt 00:00:36]} 27. Raf1
{[%clk 00:32:31]} {[%emt 00:03:16]} Ne3+ {[%clk 00:25:47]} {[%emt 00:02:54]} 28.
Rxe3 {[%clk 00:32:49]} {[%emt 00:00:12]} Bxe3 {[%clk 00:26:16]} {[%emt
00:00:02]} 29. d7 {[%clk 00:32:50]} {[%emt 00:00:28]} Bd4 {[%clk 00:26:10]}
{[%emt 00:00:27]} 30. d8=Q {[%clk 00:29:00]} {[%emt 00:04:28]} Rbxd8 {[%clk
00:26:13]} {[%emt 00:00:29]} 31. Nxd8 {[%clk 00:29:23]} {[%emt 00:00:06]} Rxd8
{[%clk 00:26:28]} {[%emt 00:00:15]} 32. Rf7+ {[%clk 00:29:48]} {[%emt
00:00:05]} Kh6 {[%emt 00:00:21]} 33. Rxb7 {[%emt 00:00:16]} Rf8 {[%clk
00:25:54]} {[%emt 00:00:26]} 34. b3 {[%clk 00:29:37]} {[%emt 00:00:43]} a5
{[%clk 00:21:50]} {[%emt 00:04:34]} 35. h4 {[%clk 00:27:23]} {[%emt 00:02:43]}
g5 {[%clk 00:20:40]} {[%emt 00:01:41]} 36. Bd3 {[%clk 00:26:00]} {[%emt
00:01:52]} gxh4 {[%clk 00:18:47]} {[%emt 00:02:23]} 37. gxh4 {[%clk 00:25:18]}
{[%emt 00:01:12]} Kh5 {[%clk 00:16:22]} {[%emt 00:02:56]} 38. Rh7+ {[%clk
00:24:25]} {[%emt 00:01:23]} Kg4 {[%clk 00:16:47]} {[%emt 00:00:04]} 39. Be2+
{[%clk 00:23:46]} {[%emt 00:01:09]} Kf4 {[%clk 00:15:43]} {[%emt 00:01:33]} 40.
Bc4 {[%clk 00:23:53]} {[%emt 00:00:24]} Kg4 {[%clk 00:15:35]} {[%emt 00:00:38]}
41. Be6+ {[%clk 00:23:58]} {[%emt 00:00:25]} Kf4 {[%clk 00:15:30]} {[%emt
00:00:34]} 42. Kh3 {[%clk 00:23:45]} {[%emt 00:00:43]} Rf6 {[%clk 00:14:02]}
{[%emt 00:02:00]} 43. Bf7 {[%clk 00:20:26]} {[%emt 00:03:48]} Be5 {[%clk
00:11:56]} {[%emt 00:02:36]} 44. Rg7 {[%clk 00:17:25]} {[%emt 00:03:29]} Ke3
{[%clk 00:11:28]} {[%emt 00:01:00]} 45. Bh5 {[%clk 00:12:32]} {[%emt 00:05:22]}
Rb6 {[%clk 00:07:28]} {[%emt 00:04:32]} 46. Rf7 {[%clk 00:12:43]} {[%emt
00:00:18]} Rf6 {[%clk 00:05:58]} {[%emt 00:02:00]} 47. Rxf6 {[%clk 00:11:43]}
{[%emt 00:01:30]} Bxf6 {[%clk 00:06:25]} {[%emt 00:00:04]} 48. Kg4 {[%clk
00:12:07]} {[%emt 00:00:05]} Ke4 {[%clk 00:06:43]} {[%emt 00:00:13]} 49. Bf7
{[%clk 00:11:23]} {[%emt 00:01:11]} Ke5 {[%clk 00:07:10]} {[%emt 00:00:05]} 50.
h5 {[%clk 00:11:40]} {[%emt 00:00:12]} Be7 {[%clk 00:07:36]} {[%emt 00:00:06]}
51. h6 {[%clk 00:11:33]} {[%emt 00:00:37]} Kf6 {[%clk 00:07:53]} {[%emt
00:00:13]} 52. Be8 {[%clk 00:11:46]} {[%emt 00:00:14]} Bd6 {[%clk 00:06:33]}
{[%emt 00:01:52]} 53. Bh5 {[%clk 00:10:46]} {[%emt 00:01:29]} Bf8 {[%clk
00:06:55]} {[%emt 00:00:09]} 54. h7 {[%clk 00:10:54]} {[%emt 00:00:22]} Kg7
{[%clk 00:04:51]} {[%emt 00:02:34]} 55. Bg6 {[%clk 00:11:07]} {[%emt 00:00:17]}
Kh8 {[%clk 00:05:14]} {[%emt 00:00:07]} 56. Bf7 {[%emt 00:00:56]} 1/2-1/2